bitfinex/quotes_BTCUSD_20250110
["timestamp","ask_amount","ask_price","bid_price","bid_amount"]
[1736525419428,8e-07,93700.0,93699.0,2.21757308]
[1736525419838,8.52e-05,93711.0,93709.0,0.463426]
[1736525420050,8.52e-05,93711.0,93709.0,0.31772576]
[1736525420258,8.52e-05,93711.0,93709.0,0.32323576]
[1736525420493,8.52e-05,93711.0,93709.0,0.10980976]
[1736525421972,8.52e-05,93711.0,93709.0,0.10880976]
[1736525422610,0.213309,93761.0,93726.0,0.15]
[1736525422837,0.289998,93766.0,93754.0,0.213323]
[1736525422838,0.0767,93766.0,93754.0,0.213323]
[1736525423106,0.000573,93756.0,93755.0,0.10429976]
[1736525423287,0.000573,93756.0,93755.0,0.10970504]
[1736525423498,0.000573,93756.0,93755.0,0.00540528]
[1736525423709,0.000573,93756.0,93755.0,0.10970504]
[1736525423910,0.000573,93756.0,93755.0,0.10429976]
[1736525424120,0.000573,93756.0,93755.0,0.10970504]
[1736525424360,0.000573,93756.0,93755.0,0.00540528]
[1736525424702,0.000573,93756.0,93728.0,0.03179499]
[1736525424703,0.000573,93756.0,93746.0,0.426683]
[1736525424939,0.000573,93756.0,93747.0,0.1045391]
[1736525425144,0.000573,93756.0,93749.0,0.213335]
[1736525425352,0.000573,93756.0,93750.0,0.10429976]
[1736525425576,0.213892,93756.0,93750.0,0.00023219]
[1736525425784,0.000573,93756.0,93722.0,0.01064]
[1736525425992,0.000573,93756.0,93726.0,0.10429976]
[1736525426109,0.00190639,93756.0,93727.0,0.25429976]
[1736525426318,0.000573,93756.0,93751.0,0.21333]
[1736525426557,0.000573,93756.0,93753.0,0.426652]
[1736525426793,0.000573,93756.0,93755.0,0.213321]
[1736525427043,0.000573,93756.0,93755.0,0.31762076]
[1736525428319,0.000573,93756.0,93755.0,0.10429976]
[1736525428745,0.213322,93755.0,93752.0,0.00563954]
[1736525428947,0.000573,93756.0,93752.0,0.00563954]
[1736525429171,0.000573,93756.0,93740.0,0.213355]
[1736525429384,0.000573,93756.0,93741.0,0.10429976]
[1736525429609,0.213351,93742.0,93741.0,0.1045534]
[1736525429822,0.213342,93746.0,93741.0,0.1045534]
[1736525430244,0.21334,93747.0,93742.0,0.00543487]
[1736525430467,0.0822,93752.0,93742.0,0.00543487]
[1736525430710,0.0822,93752.0,93720.0,0.01038967]
[1736525430711,0.21334,93747.0,93736.0,0.213364]
[1736525430957,0.09259812,93752.0,93744.0,0.213346]
[1736525431186,0.09259812,93752.0,93737.0,0.00026317]
[1736525431541,0.00133346,93751.0,93745.0,0.0002441]
[1736525431759,0.213333,93750.0,93731.0,0.213375]
[1736525431974,0.0469,93755.0,93746.0,0.10429976]
[1736525432194,0.0761,93766.0,93746.0,0.10429976]
[1736525432410,0.00133312,93765.0,93746.0,0.10429976]
[1736525432622,0.213314,93759.0,93746.0,0.31764076]
[1736525432846,0.0761,93766.0,93746.0,0.10429976]
[1736525433065,0.00133339,93765.0,93730.0,0.213376]
[1736525433280,0.213318,93757.0,93742.0,0.213349]
[1736525433503,0.0761,93766.0,93719.0,0.02188406]
[1736525433504,0.289398,93766.0,93743.0,0.10429976]
[1736525433680,0.289398,93766.0,93753.0,0.213324]
[1736525433922,0.213306,93762.0,93754.0,0.10429976]
[1736525434131,0.289398,93766.0,93754.0,0.10429976]
[1736525434339,0.0761,93766.0,93755.0,0.213321]
[1736525434576,0.26208,93774.0,93755.0,0.31762076]
[1736525434991,0.21329,93770.0,93755.0,0.31762076]
[1736525435210,0.213297,93766.0,93755.0,0.31762076]
[1736525435427,0.213297,93766.0,93755.0,0.10429976]
[1736525435428,0.213305,93763.0,93755.0,0.10429976]
[1736525435661,0.213313,93759.0,93724.0,1.5]
[1736525435870,0.213281,93773.0,93744.0,0.213344]
[1736525436086,0.213322,93755.0,93745.0,0.10429976]
[1736525436295,0.213299,93765.0,93746.0,0.213342]
[1736525436510,0.01078744,93761.0,93748.0,0.213337]
[1736525436730,0.01078744,93761.0,93752.0,0.426654]
[1736525436975,0.213321,93755.0,93743.0,0.213347]
[1736525437186,0.21334,93747.0,93724.0,0.213392]
[1736525437365,0.28884,93747.0,93733.0,0.21337]
[1736525437584,0.0755,93747.0,93734.0,0.10429976]
[1736525437784,0.01078744,93761.0,93735.0,0.10429976]
[1736525438016,0.213322,93755.0,93742.0,0.213349]
[1736525438245,0.213322,93755.0,93743.0,0.10429976]
[1736525438454,0.213317,93758.0,93744.0,0.213346]
[1736525438588,0.213329,93752.0,93745.0,0.10429976]
[1736525438992,0.213321,93755.0,93745.0,0.10429976]
[1736525439192,0.213317,93758.0,93745.0,0.10429976]
[1736525439447,0.16078744,93761.0,93747.0,0.21334]
[1736525439670,0.00133328,93760.0,93748.0,0.10429976]
[1736525439899,0.15,93759.0,93720.0,0.01064]
[1736525440128,0.15,93753.0,93721.0,0.10429976]
[1736525440361,0.213384,93728.0,93721.0,0.10429976]
[1736525440806,0.213362,93738.0,93725.0,0.213388]
[1736525441016,0.15,93749.0,93725.0,0.10429976]
[1736525441242,0.21467055,93748.0,93725.0,0.10429976]
[1736525441453,0.15,93749.0,93725.0,0.10429976]
[1736525441454,0.213374,93733.0,93725.0,0.10429976]
[1736525441667,0.21338,93730.0,93725.0,0.10429976]
[1736525441906,0.16066859,93749.0,93702.0,0.213442]
[1736525441907,0.0787,93729.0,93702.0,0.213442]
[1736525442134,0.0787,93729.0,93706.0,0.10429976]
[1736525442339,0.00133366,93728.0,93706.0,0.10429976]
[1736525442557,0.259085,93727.0,93696.0,0.213455]
[1736525442773,0.213421,93712.0,93698.0,0.213451]
[1736525442908,0.213421,93712.0,93700.0,0.213447]
[1736525443117,0.213421,93712.0,93686.0,0.02139636]
[1736525443118,0.0457,93727.0,93701.0,0.10429976]
[1736525443319,0.21345,93699.0,93688.0,0.213472]
[1736525443545,0.213445,93701.0,93689.0,0.10429976]
[1736525443749,0.213401,93720.0,93689.0,0.10429976]
[1736525443949,0.173,93721.0,93689.0,0.10429976]
[1736525443950,0.213465,93692.0,93689.0,0.10429976]
[1736525444800,0.213475,93688.0,93678.0,0.0001702]
[1736525445038,0.213475,93688.0,93679.0,0.10429976]
[1736525446423,0.22389328,93692.0,93679.0,0.10429976]
[1736525446424,0.213465,93692.0,93679.0,0.10429976]
[1736525447068,0.426931,93692.0,93679.0,0.10429976]
[1736525447277,0.213466,93692.0,93679.0,0.10429976]
[1736525447488,0.213475,93688.0,93679.0,0.10429976]
[1736525448136,0.213467,93691.0,93680.0,0.213492]
[1736525448363,0.0797,93713.0,93681.0,0.10429976]
[1736525448572,0.0797,93713.0,93689.0,0.213471]
[1736525448573,0.213441,93703.0,93689.0,0.213471]
[1736525448777,0.213441,93703.0,93691.0,0.213467]
[1736525448984,0.213441,93703.0,93692.0,0.10429976]
[1736525449404,0.213419,93712.0,93692.0,0.10429976]
[1736525449879,0.213386,93727.0,93698.0,0.10429976]
[1736525450099,0.0479,93732.0,93708.0,0.10429976]
[1736525450313,0.261274,93732.0,93708.0,0.10429976]
[1736525450523,0.261274,93732.0,93715.0,0.213411]
[1736525450734,0.213376,93731.0,93716.0,0.10429976]
[1736525450946,0.0479,93732.0,93717.0,0.213408]
[1736525451175,0.0479,93732.0,93697.0,0.0212595]
[1736525451176,0.0479,93732.0,93718.0,0.10429976]
[1736525451386,0.0013337,93731.0,93718.0,0.10429976]
[1736525451640,0.213378,93730.0,93708.0,0.213426]
[1736525451840,0.213378,93730.0,93674.0,0.213505]
[1736525451841,0.00133387,93729.0,93674.0,0.213505]
[1736525452055,0.213436,93705.0,93689.0,0.213471]
[1736525452270,0.08,93711.0,93690.0,0.10429976]
[1736525452478,0.213441,93703.0,93690.0,0.10429976]
[1736525452905,0.213428,93708.0,93690.0,0.10429976]
[1736525453117,0.08,93711.0,93690.0,0.10429976]
[1736525453594,0.08,93711.0,93701.0,0.213442]
[1736525453804,0.08,93711.0,93702.0,0.10429976]
[1736525454016,0.0791,93726.0,93713.0,0.213416]
[1736525454240,0.00014628,93726.0,93714.0,0.10429976]
[1736525454455,0.00014628,93726.0,93722.0,0.213395]
[1736525454676,0.00014628,93726.0,93723.0,0.10429976]
[1736525455740,0.00014628,93726.0,93724.0,0.213392]
[1736525455948,0.00014628,93726.0,93725.0,0.10429976]
[1736525456803,0.00014628,93726.0,93716.0,0.213409]
[1736525457015,0.00014628,93726.0,93717.0,0.10429976]
[1736525457655,0.00014628,93726.0,93723.0,0.213394]
[1736525457876,0.00014628,93726.0,93725.0,0.21339]
[1736525458056,0.00014628,93726.0,93725.0,0.31768976]
[1736525460467,0.00014628,93726.0,93725.0,0.46768976]
[1736525460910,0.00014628,93726.0,93725.0,0.31768976]
[1736525461193,0.00014628,93726.0,93725.0,0.10429976]
[1736525461629,0.00014628,93726.0,93705.0,0.213435]
[1736525461812,0.00014628,93726.0,93706.0,0.10429976]
[1736525462017,0.00014628,93726.0,93716.0,0.21341]
[1736525462227,0.00014628,93726.0,93717.0,0.10429976]
[1736525462471,0.21353428,93726.0,93717.0,0.10429976]
[1736525462683,0.213416,93714.0,93702.0,0.21344]
[1736525462890,0.00014628,93726.0,93703.0,0.10429976]
[1736525463315,0.213443,93702.0,93688.0,0.213473]
[1736525463520,0.213465,93692.0,93689.0,0.10429976]
[1736525463938,0.127,93702.0,93679.0,0.213495]
[1736525464153,0.00133426,93701.0,93680.0,0.10429976]
[1736525464370,0.213462,93694.0,93681.0,0.21349]
[1736525464587,0.213462,93694.0,93682.0,0.10429976]
[1736525465423,0.213457,93696.0,93683.0,0.213485]
[1736525465633,0.13771298,93702.0,93684.0,0.10429976]
[1736525465883,0.213472,93689.0,93684.0,0.10429976]
[1736525466106,0.13771298,93702.0,93678.0,0.00031659]
[1736525466107,0.426982,93681.0,93678.0,0.00031659]
[1736525466320,0.363495,93679.0,93678.0,0.00031659]
[1736525466526,0.386495,93679.0,93678.0,0.00031659]
[1736525467465,0.3968512,93679.0,93678.0,0.00031659]
[1736525470776,0.4074512,93679.0,93678.0,0.00031659]
[1736525470997,0.3738512,93679.0,93678.0,0.00031659]
[1736525471862,0.213472,93689.0,93678.0,0.10461635]
[1736525472072,0.213495,93679.0,93678.0,0.00031659]
[1736525472731,0.236495,93679.0,93678.0,0.00031659]
[1736525472958,0.4564935,93679.0,93678.0,0.00031659]
[1736525473762,0.386495,93679.0,93678.0,0.00031659]
[1736525474474,0.386495,93679.0,93657.0,0.0001702]
[1736525474475,0.213542,93658.0,93657.0,0.0001702]
[1736525474697,0.023,93664.0,93622.0,0.2137932]
[1736525474919,0.213578,93643.0,93623.0,0.10429976]
[1736525475148,0.15,93660.0,93622.0,0.0001702]
[1736525475149,0.15,93660.0,93627.0,0.10429976]
[1736525475368,0.213586,93640.0,93627.0,0.10429976]
[1736525475580,0.213594,93636.0,93627.0,0.10429976]
[1736525475967,0.0815,93649.0,93627.0,0.10429976]
[1736525476165,0.213588,93638.0,93627.0,0.10429976]
[1736525477091,0.213575,93644.0,93632.0,0.2136]
[1736525477302,0.213567,93647.0,93632.0,0.10429976]
[1736525477513,0.00133499,93646.0,93632.0,0.10429976]
[1736525477723,0.213598,93634.0,93632.0,0.10429976]
[1736525477931,0.213608,93630.0,93622.0,0.0001702]
[1736525478142,0.213608,93630.0,93623.0,0.10429976]
[1736525478559,0.213598,93634.0,93623.0,0.10429976]
[1736525478988,0.213612,93628.0,93623.0,0.10429976]
[1736525479622,0.22861133,93648.0,93622.0,0.0001702]
[1736525479623,0.213622,93623.0,93622.0,0.0001702]
[1736525480530,0.213607,93630.0,93622.0,0.0001702]
[1736525480746,0.213616,93626.0,93622.0,0.0001702]
[1736525481163,0.26772593,93648.0,93623.0,0.10429976]
[1736525481164,0.213598,93634.0,93623.0,0.10429976]
[1736525481374,0.213619,93625.0,93623.0,0.10429976]
[1736525481624,0.427238,93625.0,93622.0,0.0001702]
[1736525482244,0.15,93629.0,93622.0,0.0001702]
[1736525482454,0.0467,93648.0,93622.0,0.0001702]
[1736525482455,0.0467,93648.0,93623.0,0.10429976]
[1736525482665,0.213603,93632.0,93623.0,0.10429976]
[1736525483295,0.05727424,93648.0,93623.0,0.10429976]
[1736525483296,0.213586,93639.0,93624.0,0.21362]
[1736525483500,0.213586,93639.0,93626.0,0.213615]
[1736525483706,0.213586,93639.0,93626.0,0.31791476]
[1736525483932,0.213586,93639.0,93627.0,0.10429976]
[1736525484119,0.15,93642.0,93628.0,0.213611]
[1736525484343,0.01057424,93648.0,93629.0,0.10429976]
[1736525484551,0.213567,93647.0,93629.0,0.10429976]
[1736525484690,0.00133492,93646.0,93629.0,0.10429976]
[1736525484900,0.213583,93641.0,93630.0,0.213606]
[1736525485103,0.213593,93636.0,93622.0,0.2137922]
[1736525485326,0.15,93647.0,93623.0,0.10429976]
[1736525485545,0.213603,93632.0,93623.0,0.10429976]
[1736525485979,0.213601,93633.0,93623.0,0.10429976]
[1736525486207,0.213609,93629.0,93623.0,0.10429976]
[1736525486431,0.213603,93632.0,93623.0,0.10429976]
[1736525487366,0.427178,93638.0,93624.0,0.21362]
[1736525487566,0.00014609,93649.0,93625.0,0.10429976]
[1736525487773,0.00014609,93649.0,93626.0,0.10429976]
[1736525487994,0.00014609,93649.0,93639.0,0.213585]
[1736525488198,0.00014609,93649.0,93641.0,0.213581]
[1736525488400,0.00014609,93649.0,93642.0,0.10429976]
[1736525489588,0.21370909,93649.0,93642.0,0.10429976]
[1736525489994,0.00014609,93649.0,93642.0,0.10429976]
[1736525490201,0.213573,93645.0,93624.0,0.02129398]
[1736525490412,0.00014609,93649.0,93625.0,0.10429976]
[1736525490611,0.213596,93635.0,93625.0,0.10429976]
[1736525490807,0.213606,93631.0,93625.0,0.10429976]
[1736525491015,0.213613,93627.0,93622.0,0.0001702]
[1736525491215,0.213613,93627.0,93622.0,0.10446996]
[1736525491424,0.213622,93623.0,93622.0,0.0001702]
[1736525492874,0.213613,93627.0,93622.0,0.0001702]
[1736525493083,0.213618,93625.0,93622.0,0.0001702]
[1736525493294,0.213622,93623.0,93622.0,0.0001702]
[1736525495833,0.363622,93623.0,93622.0,0.0001702]
[1736525495975,0.01078072,93630.0,93622.0,0.10446996]
[1736525496177,0.00133507,93639.0,93623.0,0.10429976]
[1736525496379,0.213588,93638.0,93624.0,0.21362]
[1736525496578,0.00014609,93649.0,93634.0,0.213595]
[1736525496757,0.21371009,93649.0,93635.0,0.10429976]
[1736525496971,0.00014609,93649.0,93635.0,0.10429976]
[1736525497194,0.00014609,93649.0,93645.0,0.213571]
[1736525497412,0.213565,93648.0,93646.0,0.10429976]
[1736525497624,0.213565,93648.0,93636.0,0.213592]
[1736525497851,0.00014609,93649.0,93638.0,0.213588]
[1736525498052,0.00014609,93649.0,93646.0,0.213569]
[1736525498269,0.00014609,93649.0,93648.0,0.213565]
[1736525498488,0.00014609,93649.0,93648.0,0.31786476]
[1736525498908,0.00114609,93649.0,93648.0,0.31786476]
[1736525499834,0.00014609,93649.0,93648.0,0.31786476]
[1736525500053,0.00114609,93649.0,93648.0,0.47686476]
[1736525500270,0.00214609,93649.0,93648.0,0.57686476]
[1736525500491,9e-08,93649.0,93648.0,0.74332724]
[1736525500701,8.52e-05,93687.0,93686.0,0.213479]
[1736525500939,0.00023148,93687.0,93686.0,0.31777876]
[1736525502216,0.00023148,93687.0,93686.0,0.10429976]
[1736525502634,0.00023148,93687.0,93686.0,0.11329976]
[1736525502864,0.00023148,93687.0,93686.0,0.10429976]
[1736525503251,0.00023148,93687.0,93686.0,0.11329976]
[1736525503698,0.00123148,93687.0,93686.0,0.12129976]
[1736525504324,0.00023148,93687.0,93686.0,0.11329976]
[1736525504746,0.00123148,93687.0,93686.0,0.12229976]
[1736525504953,0.00123148,93687.0,93686.0,0.11329976]
[1736525505382,0.00123148,93687.0,93686.0,0.12229976]
[1736525505804,0.00123148,93687.0,93686.0,0.11329976]
[1736525506016,0.00023148,93687.0,93686.0,0.10429976]
[1736525506222,0.00023148,93687.0,93686.0,0.11329976]
[1736525506627,0.00123148,93687.0,93686.0,0.12229976]
[1736525506866,0.00123148,93687.0,93686.0,0.11329976]
[1736525507582,0.00123148,93687.0,93686.0,0.009]
[1736525508002,0.00256578,93687.0,93686.0,0.009]
[1736525508820,0.00256578,93687.0,93686.0,0.018]
[1736525509025,0.01311313,93687.0,93686.0,0.009]
[1736525509230,0.03611313,93687.0,93686.0,0.009]
[1736525509429,0.213508,93674.0,93659.0,0.213539]
[1736525509636,0.213479,93686.0,93660.0,0.10429976]
[1736525509837,0.213479,93686.0,93671.0,0.213511]
[1736525510052,0.213479,93686.0,93672.0,0.10429976]
[1736525510238,0.00023148,93687.0,93686.0,0.009]
[1736525510588,0.213483,93684.0,93652.0,0.213556]
[1736525510815,0.213535,93662.0,93659.0,0.006]
[1736525511019,0.42707,93662.0,93659.0,0.006]
[1736525511228,0.213526,93666.0,93630.0,0.213605]
[1736525511229,0.213573,93645.0,93630.0,0.213605]
[1736525511437,0.08223466,93661.0,93631.0,0.10429976]
[1736525511438,0.21354,93659.0,93631.0,0.10429976]
[1736525511645,0.213579,93642.0,93631.0,0.10429976]
[1736525511847,0.15,93656.0,93631.0,0.10429976]
[1736525512072,0.213585,93640.0,93631.0,0.10429976]
[1736525512480,0.15,93656.0,93631.0,0.10478795]
[1736525512481,0.15,93654.0,93631.0,0.10478795]
[1736525512689,0.00133498,93653.0,93631.0,0.10478795]
[1736525512892,0.213578,93643.0,93631.0,0.31839195]
[1736525513096,0.173,93658.0,93631.0,0.11278795]
[1736525513324,0.00133498,93657.0,93631.0,0.10478795]
[1736525513512,0.001,93640.0,93631.0,0.11178795]
[1736525513707,0.001,93640.0,93631.0,0.11878795]
[1736525513914,0.213586,93639.0,93631.0,0.10478795]
[1736525514119,0.213586,93640.0,93631.0,0.10478795]
[1736525514323,0.213586,93640.0,93631.0,0.11178795]
[1736525514741,0.213586,93640.0,93631.0,0.11578795]
[1736525514950,0.213577,93643.0,93631.0,0.11578795]
[1736525515291,0.213587,93639.0,93631.0,0.11578795]
[1736525515492,0.16085613,93658.0,93631.0,0.11578795]
[1736525515692,0.2148798,93657.0,93641.0,0.213579]
[1736525515848,0.01056,93685.0,93651.0,0.213557]
[1736525515849,0.213527,93665.0,93651.0,0.213557]
[1736525516061,0.0483,93675.0,93647.0,0.213566]
[1736525516062,0.213529,93664.0,93652.0,0.10429976]
[1736525516259,0.213529,93664.0,93653.0,0.213554]
[1736525516458,0.0589605,93675.0,93653.0,0.10429976]
[1736525516671,0.213545,93657.0,93642.0,0.213578]
[1736525516874,0.213545,93657.0,93643.0,0.10429976]
[1736525517097,0.213545,93657.0,93644.0,0.213574]
[1736525517296,0.213545,93657.0,93645.0,0.10429976]
[1736525517494,0.213545,93657.0,93652.0,0.009]
[1736525518550,0.15,93654.0,93652.0,0.009]
[1736525518781,0.213576,93644.0,93631.0,0.21409119]
[1736525518985,0.15,93654.0,93633.0,0.213599]
[1736525519187,0.15,93654.0,93643.0,0.009]
[1736525519396,0.01063817,93657.0,93651.0,0.213557]
[1736525519606,0.213529,93664.0,93652.0,0.10429976]
[1736525519810,0.15,93658.0,93652.0,0.10429976]
[1736525520062,0.15,93658.0,93652.0,0.11329976]
[1736525520234,0.213545,93657.0,93653.0,0.003]
[1736525520638,0.213545,93657.0,93652.0,0.10429976]
[1736525520849,0.213556,93652.0,93651.0,0.009]
[1736525521889,0.213506,93674.0,93651.0,0.11329976]
[1736525522092,0.0105341,93656.0,93652.0,0.006]
[1736525522361,0.213548,93656.0,93652.0,0.006]
[1736525522807,0.213552,93654.0,93652.0,0.006]
[1736525522989,0.213548,93656.0,93652.0,0.015]
[1736525523212,0.213548,93656.0,93652.0,0.006]
[1736525523623,0.213536,93661.0,93652.0,0.009]
[1736525523859,0.213536,93661.0,93653.0,0.10429976]
[1736525524045,0.20888087,93675.0,93653.0,0.10429976]
[1736525524046,0.213508,93673.0,93653.0,0.10429976]
[1736525524173,0.22415889,93672.0,93654.0,0.213552]
[1736525524375,0.213489,93682.0,93670.0,0.213513]
[1736525524676,8.52e-05,93687.0,93676.0,0.2135]
[1736525524885,8.52e-05,93687.0,93677.0,0.10429976]
[1736525525100,0.213488,93682.0,93677.0,0.10429976]
[1736525525303,8.52e-05,93687.0,93677.0,0.10429976]
[1736525525738,0.00023148,93687.0,93684.0,0.213482]
[1736525525983,0.00023148,93687.0,93686.0,0.213479]
[1736525526193,0.00023148,93687.0,93686.0,0.31777876]
[1736525526625,0.00023148,93687.0,93686.0,0.10429976]
[1736525527264,0.00023148,93687.0,93686.0,0.11329976]
[1736525527466,0.00023148,93687.0,93676.0,0.213499]
[1736525527700,0.00023148,93687.0,93686.0,0.10429976]
[1736525527912,0.00023148,93687.0,93686.0,0.31777876]
[1736525528546,0.00023148,93687.0,93686.0,0.32477876]
[1736525528930,0.00023148,93687.0,93686.0,0.32677876]
[1736525529134,0.00023148,93687.0,93686.0,0.31777876]
[1736525529363,0.00023148,93687.0,93686.0,0.32677876]
[1736525529804,0.00023148,93687.0,93686.0,0.018]
[1736525529986,0.00023148,93687.0,93686.0,0.009]
[1736525530405,0.00023148,93687.0,93686.0,0.018]
[1736525530657,0.00023148,93687.0,93678.0,0.213496]
[1736525530868,0.00023148,93687.0,93680.0,0.213492]
[1736525531095,0.00023148,93687.0,93686.0,0.009]
[1736525531309,0.00023148,93687.0,93686.0,0.11329976]
[1736525531491,0.00023148,93687.0,93686.0,0.10429976]
[1736525531903,0.00023148,93687.0,93686.0,0.11029976]
[1736525532204,0.00023148,93687.0,93686.0,0.11329976]
[1736525532451,0.00023148,93687.0,93686.0,0.10429976]
[1736525532654,0.00023148,93687.0,93686.0,0.007]
[1736525532867,0.00023148,93687.0,93686.0,0.016]
[1736525533062,0.00023148,93687.0,93686.0,0.007]
[1736525533475,0.21370748,93687.0,93686.0,0.016]
[1736525533696,0.21370748,93687.0,93686.0,0.007]
[1736525533903,0.213527,93665.0,93637.0,0.213589]
[1736525534102,0.213527,93665.0,93644.0,0.10429976]
[1736525534336,0.213481,93685.0,93644.0,0.10429976]
[1736525534337,0.213522,93667.0,93651.0,0.213556]
[1736525534514,0.213522,93667.0,93652.0,0.10429976]
[1736525534687,0.21351,93672.0,93652.0,0.10429976]
[1736525534901,0.21352,93668.0,93652.0,0.10429976]
[1736525535435,0.213531,93664.0,93652.0,0.10429976]
[1736525535643,0.427077,93660.0,93652.0,0.10429976]
[1736525535858,0.09312874,93674.0,93621.0,0.1311]
[1736525535859,0.00133468,93659.0,93621.0,0.1311]
[1736525536070,0.213576,93644.0,93627.0,0.10429976]
[1736525536271,0.213566,93648.0,93635.0,0.213595]
[1736525536475,0.213575,93644.0,93636.0,0.10429976]
[1736525536691,0.213569,93647.0,93636.0,0.10429976]
[1736525536905,0.213578,93643.0,93636.0,0.10429976]
[1736525537402,0.213586,93639.0,93636.0,0.10429976]
[1736525537672,0.213552,93654.0,93636.0,0.10478795]
[1736525537791,0.213573,93645.0,93636.0,0.10478795]
[1736525537991,0.213552,93654.0,93636.0,0.31837995]
[1736525537992,0.213556,93652.0,93636.0,0.31837995]
[1736525538190,0.213561,93650.0,93636.0,0.31837995]
[1736525538425,0.21357,93646.0,93636.0,0.10478795]
[1736525538693,0.001,93639.0,93636.0,0.11278795]
[1736525539320,0.21357,93646.0,93636.0,0.10478795]
[1736525539525,0.21357,93646.0,93636.0,0.11378795]
[1736525539635,0.213566,93648.0,93636.0,0.11378795]
[1736525539843,0.213552,93654.0,93637.0,0.21359]
[1736525540047,0.213556,93652.0,93638.0,0.10429976]
[1736525540243,0.213545,93657.0,93638.0,0.10429976]
[1736525540511,0.21356,93651.0,93639.0,0.213586]
[1736525540729,0.21356,93651.0,93640.0,0.10429976]
[1736525540929,0.001,93646.0,93640.0,0.10429976]
[1736525541158,0.001,93646.0,93641.0,0.213581]
[1736525541358,0.001,93646.0,93643.0,0.213577]
[1736525541564,0.001,93646.0,93644.0,0.10429976]
[1736525541770,0.0792,93683.0,93646.0,0.15]
[1736525541886,0.0792,93698.0,93661.0,0.10429976]
[1736525542258,0.04663417,93700.0,93670.0,0.30156623]
[1736525542498,0.09502046,93701.0,93684.0,0.213482]
[1736525542669,0.213425,93710.0,93686.0,0.213479]
[1736525542910,0.213425,93710.0,93686.0,0.31777876]
[1736525543086,0.213452,93698.0,93686.0,0.10429976]
[1736525543330,0.00133419,93697.0,93686.0,0.10429976]
[1736525543577,0.00023148,93687.0,93686.0,0.10429976]
[1736525543842,0.00023148,93687.0,93684.0,0.213483]
[1736525543843,0.00023148,93687.0,93684.0,0.009]
[1736525544083,0.00023148,93687.0,93685.0,0.31778076]
[1736525545407,0.00023148,93687.0,93685.0,0.10429976]
[1736525545657,0.00023148,93687.0,93686.0,0.009]
[1736525545894,0.00023148,93687.0,93685.0,0.11229976]
[1736525546151,0.00023148,93687.0,93686.0,0.213479]
[1736525546829,0.00023148,93687.0,93685.0,0.015]
[1736525547079,0.00023148,93687.0,93685.0,0.01449224]
[1736525547344,0.00023148,93687.0,93685.0,0.00549224]
[1736525547601,0.21481341,93686.0,93685.0,0.00549224]
[1736525547835,0.213479,93686.0,93685.0,0.00549224]
[1736525548350,0.411679,93686.0,93685.0,0.00549224]
[1736525548600,0.411679,93686.0,93685.0,0.01449224]
[1736525549087,0.411679,93686.0,93685.0,0.00549224]
[1736525549314,0.411679,93686.0,93685.0,0.009]
[1736525549550,0.213507,93674.0,93662.0,0.213533]
[1736525549831,0.213507,93674.0,93663.0,0.10429976]
[1736525550095,0.213507,93674.0,93664.0,0.213529]
[1736525550354,0.21370948,93687.0,93665.0,0.10429976]
[1736525550606,0.213479,93686.0,93675.0,0.213502]
[1736525550861,0.213488,93682.0,93675.0,0.10429976]
[1736525551356,0.213488,93682.0,93661.0,0.213535]
[1736525551357,0.213481,93685.0,93666.0,0.213523]
[1736525551558,0.213479,93686.0,93667.0,0.31782176]
[1736525551559,0.213494,93680.0,93667.0,0.31782176]
[1736525552002,0.213483,93684.0,93671.0,0.213513]
[1736525552121,0.426967,93684.0,93671.0,0.31781276]
[1736525552604,0.213483,93684.0,93671.0,0.31781276]
[1736525552877,0.213488,93682.0,93671.0,0.31781276]
[1736525553590,0.213492,93680.0,93671.0,0.10429976]
[1736525554038,0.213492,93680.0,93675.0,0.005]
[1736525554310,0.21349,93682.0,93671.0,0.31781176]
[1736525554541,0.00133444,93681.0,93666.0,0.213524]
[1736525554819,0.00133444,93681.0,93671.0,0.005]
[1736525555045,0.213495,93679.0,93671.0,0.014]
[1736525555307,0.213504,93675.0,93671.0,0.005]
[1736525555545,0.00023148,93687.0,93672.0,0.10429976]
[1736525555774,0.00023148,93687.0,93684.0,0.213482]
[1736525556028,0.00023148,93687.0,93686.0,0.213479]
[1736525556254,8.52e-05,93721.0,93686.0,0.46777876]
[1736525556457,8.52e-05,93721.0,93720.0,0.213401]
[1736525556676,8.52e-05,93721.0,93720.0,0.31770076]
[1736525556677,0.00013395,93721.0,93720.0,0.31770076]
[1736525558497,9.5e-07,93721.0,93720.0,0.46770076]
[1736525558715,8.52e-05,93743.0,93720.0,0.46770076]
[1736525558716,8.52e-05,93743.0,93731.0,0.363376]
[1736525558936,8.52e-05,93756.0,93755.0,0.213321]
[1736525559154,8.52e-05,93756.0,93755.0,0.31762076]
[1736525559155,0.00013394,93756.0,93755.0,0.31762076]
[1736525559585,0.00013394,93756.0,93755.0,0.31262076]
[1736525560048,0.00013394,93756.0,93755.0,0.32305738]
[1736525560481,8.51e-05,93780.0,93755.0,0.32305738]
[1736525560482,8.51e-05,93780.0,93776.0,0.363274]
[1736525560682,0.00013393,93777.0,93776.0,0.69057376]
[1736525560846,0.00013393,93777.0,93776.0,2.19057376]
[1736525561050,0.00013393,93777.0,93776.0,1.94057376]
[1736525561265,0.00013393,93777.0,93776.0,1.92809376]
[1736525561464,0.00013393,93777.0,93776.0,1.95109376]
[1736525561716,0.00013393,93777.0,93776.0,1.81757376]
[1736525561930,0.00013393,93777.0,93776.0,0.31757376]
[1736525562135,0.00013393,93777.0,93776.0,0.32657376]
[1736525562357,0.00013393,93777.0,93776.0,0.31757376]
[1736525562769,0.00013393,93777.0,93776.0,0.33724886]
[1736525563644,0.00013393,93777.0,93776.0,0.35905424]
[1736525564276,0.00013393,93777.0,93776.0,0.32657376]
[1736525564482,0.00013393,93777.0,93776.0,0.12229976]
[1736525564689,0.00013393,93777.0,93776.0,0.11329976]
[1736525565114,0.00013393,93777.0,93776.0,0.12229976]
[1736525565320,0.00013393,93777.0,93776.0,0.10429976]
[1736525565752,0.00013393,93777.0,93776.0,0.12229976]
[1736525565960,0.00013393,93777.0,93776.0,0.32657376]
[1736525566591,0.00013393,93777.0,93776.0,0.12229976]
[1736525566817,0.00013393,93777.0,93776.0,0.018]
[1736525567021,0.0014671,93777.0,93776.0,0.018]